bitfinex-derivatives/quotes_ETHF0:USTF0_20250115
["timestamp","ask_amount","ask_price","bid_price","bid_amount"]
[1736957257017,3.80487,3349.5,3348.8,3.2078]
[1736957257226,3.2078,3349.5,3348.8,4.70078]
[1736957257420,3.2078,3349.5,3349.0,0.59714]
[1736957257421,0.5971,3349.3,3349.0,0.59714]
[1736957257628,3.23493554,3349.4,3348.8,3.2078]
[1736957257830,3.30375601,3349.2,3348.8,4.70076]
[1736957258027,3.30375601,3349.4,3348.8,4.70076]
[1736957258230,3.30375601,3349.4,3348.8,3.2078]
[1736957258425,6.11084824,3349.5,3348.4,3.2078]
[1736957258626,0.59717,3349.0,3348.5,0.59725]
[1736957258826,4.79647601,3349.4,3348.6,0.59721]
[1736957259023,0.59725,3348.5,3348.4,3.2078]
[1736957259230,1.4929,3349.0,3348.0,4.5898]
[1736957259430,0.59729,3348.3,3348.1,0.59732]
[1736957259629,3.2078,3348.7,3348.0,1.382]
[1736957259934,3.2078,3348.3,3348.2,0.5973]
[1736957260124,3.27701101,3348.7,3348.6,0.59723]
[1736957260321,0.9173,3348.8,3348.7,0.59721]
[1736957260731,4.16662427,3348.8,3348.7,0.59721]
[1736957261135,0.59718,3348.9,3348.7,0.59721]
[1736957261528,0.59717,3349.0,3348.8,0.59718]
[1736957261734,3.2078,3349.2,3348.5,3.2078]
[1736957261935,3.80493,3349.2,3349.0,0.59715]
[1736957262231,3.2078,3349.2,3348.5,3.2078]
[1736957262435,3.2078,3349.6,3348.7,2.90304824]
[1736957262632,3.2078,3349.6,3348.9,1.49295]
[1736957262839,1.0011,3350.0,3349.1,7.60370824]
[1736957263041,0.59699,3350.0,3349.3,1.49273]
[1736957263241,0.597,3349.9,3349.7,0.59702]
[1736957263535,3.46297263,3349.9,3349.5,0.59705]
[1736957263741,0.59703,3349.7,3349.1,6.11084824]
[1736957263932,0.59703,3349.7,3349.5,0.59706]
[1736957264237,3.2078,3350.1,3349.1,6.11084824]
[1736957264433,3.12036064,3349.6,3349.1,6.11084824]
[1736957264630,0.59708,3349.5,3349.4,0.59708]
[1736957264836,3.2078,3350.1,3349.1,6.11084824]
[1736957265036,0.59706,3349.6,3349.5,0.59706]
[1736957265953,0.5971,3349.4,3349.3,0.59709]
[1736957267537,3.2078,3350.1,3349.1,6.11084824]
[1736957267737,3.2078,3350.1,3349.1,7.60369824]
[1736957267938,3.35178208,3349.9,3349.8,0.59701]
[1736957268144,3.35178208,3350.0,3349.5,6.11084824]
[1736957268436,3.80477,3350.1,3350.0,0.59698]
[1736957268437,3.2078,3350.1,3350.0,0.59698]
[1736957268648,0.597,3350.0,3349.9,0.59699]
[1736957268837,3.94035374,3350.0,3349.9,0.59699]
[1736957269031,6.55115374,3350.1,3349.6,0.9643]
[1736957269244,3.2078,3350.1,3350.0,0.59698]
[1736957269835,0.59698,3350.1,3349.7,0.59703]
[1736957270040,4.2089,3350.5,3349.6,0.9643]
[1736957270244,3.169504,3350.0,3349.1,3.2078]
[1736957270447,0.59706,3349.6,3349.2,0.59712]
[1736957270741,0.59708,3349.5,3349.2,0.59711]
[1736957270950,3.2078,3349.7,3349.1,3.2078]
[1736957271245,3.2078,3349.7,3349.2,0.59712]
[1736957271449,4.02937636,3349.6,3349.3,0.59709]
[1736957271634,0.59708,3349.5,3349.2,0.59711]
[1736957271838,3.43230636,3349.6,3349.4,0.59707]
[1736957272046,3.43230636,3349.6,3349.1,3.2078]
[1736957272248,4.02937636,3349.6,3349.1,3.2078]
[1736957272540,4.02937636,3349.6,3349.4,0.59708]
[1736957273841,3.2078,3350.1,3349.5,3.80487]
[1736957274043,3.2078,3350.1,3350.0,0.59698]
[1736957274441,0.59695,3350.2,3350.0,0.59698]
[1736957274744,3.25615533,3350.1,3350.0,0.59698]
[1736957275248,3.25615533,3350.3,3349.6,0.9306]
[1736957275447,0.59693,3350.3,3349.6,2.42319]
[1736957275741,3.29441722,3350.2,3350.0,0.59697]
[1736957275946,3.89136722,3350.2,3350.0,0.59697]
[1736957276146,0.59695,3350.2,3350.0,0.59697]
[1736957276644,0.59696,3350.1,3350.0,0.59698]
[1736957276849,1.0011,3350.5,3350.0,0.59698]
[1736957277051,0.59693,3350.3,3350.0,0.59698]
[1736957277346,0.59695,3350.2,3350.0,0.59698]
[1736957277549,4.01520465,3350.2,3350.0,0.59697]
[1736957277744,0.59695,3350.2,3350.0,0.59697]
[1736957277947,0.59694,3350.2,3349.9,0.597]
[1736957278145,0.59697,3350.1,3349.9,0.597]
[1736957278451,0.59697,3350.1,3350.0,0.59698]
[1736957278852,0.59696,3350.2,3350.0,0.59698]
[1736957279149,3.94407612,3350.1,3349.9,0.597]
[1736957279350,3.34710612,3350.1,3349.6,0.9306]
[1736957279552,0.597,3349.9,3349.7,0.59703]
[1736957279850,3.2078,3350.2,3349.5,3.2078]
[1736957280052,0.59705,3349.6,3349.5,3.2078]
[1736957280351,4.03991271,3349.6,3349.5,3.2078]
[1736957281443,3.44286271,3349.6,3349.1,0.9774]
[1736957281649,3.44286271,3349.6,3349.4,0.59707]
[1736957281650,4.03992271,3349.6,3349.4,0.59707]
[1736957281847,4.03991271,3349.6,3349.4,0.59707]
[1736957282353,3.44286271,3349.6,3349.1,0.9774]
[1736957282551,3.44286271,3349.6,3349.0,3.2078]
[1736957282855,0.59712,3349.3,3349.1,0.59714]
[1736957283359,3.15717821,3349.2,3349.0,3.2078]
[1736957283553,3.15717821,3349.2,3348.5,4.70089]
[1736957283747,6.66026415,3349.4,3348.5,3.2078]
[1736957283953,2.43701,3349.5,3348.4,0.59726]
[1736957283954,3.2078,3349.0,3348.4,0.59726]
[1736957284147,0.59722,3348.7,3348.3,0.9568]
[1736957284353,5.8326523,3348.9,3348.4,0.59726]
[1736957284555,0.59725,3348.5,3348.4,0.59726]
[1736957284851,3.02469467,3348.6,3348.1,3.2078]
[1736957285050,0.5973,3348.2,3348.1,3.2078]
[1736957285247,0.59737,3347.8,3347.7,1.0065]
[1736957285448,3.2078,3347.8,3346.6,4.62853705]
[1736957285751,3.2078,3347.3,3346.6,4.62853705]
[1736957285949,3.2078,3347.3,3346.4,6.94280557]
[1736957285950,0.51968178,3347.2,3346.4,0.59761]
[1736957286148,0.51968178,3347.2,3346.3,40.0]
[1736957286149,4.85123423,3347.2,3346.3,40.0]
[1736957286357,3.2078,3346.9,3346.2,3.2078]
[1736957286559,0.59761,3346.5,3346.2,3.80545]
[1736957286759,3.2078,3346.9,3346.2,3.80545]
[1736957286760,3.36105584,3346.8,3346.3,40.0]
[1736957287056,3.95867584,3346.4,3346.2,3.2078]
[1736957287256,0.59764,3346.3,3346.2,3.2078]
[1736957287451,3.95869584,3346.3,3346.2,3.2078]
[1736957287855,0.59764,3346.3,3346.2,3.2078]
[1736957288060,0.59772,3345.9,3345.8,3.2078]
[1736957288252,2.90304824,3346.2,3345.3,2.3057]
[1736957288456,3.2078,3346.1,3345.3,2.3057]
[1736957288656,3.2078,3346.1,3345.3,0.9247]
[1736957288657,3.43398246,3345.9,3345.3,0.9247]
[1736957288859,3.2078,3345.7,3345.2,3.2078]
[1736957289162,3.2078,3345.7,3344.9,0.9321]
[1736957289163,0.59787,3345.0,3344.9,0.9321]
[1736957289952,3.2078,3345.3,3344.3,2.90304824]
[1736957289953,0.59791,3344.8,3344.3,2.90304824]
[1736957290156,1.4946,3345.2,3344.3,4.5898]
[1736957290356,0.59796,3344.6,3344.3,4.5898]
[1736957290555,3.3314324,3345.2,3344.4,2.90304824]
[1736957290763,3.3314324,3345.2,3344.7,3.2078]
[1736957290962,0.5979,3344.9,3344.7,3.2078]
[1736957291154,0.59788,3345.0,3344.7,3.2078]
[1736957291365,0.59789,3344.9,3344.7,3.2078]
[1736957291557,0.59788,3345.0,3344.7,3.2078]
[1736957291754,3.43083712,3345.6,3344.7,4.1338]
[1736957291963,3.2078,3345.7,3345.1,3.2078]
[1736957292167,0.59785,3345.2,3345.1,3.2078]
[1736957293063,3.38034927,3345.6,3345.1,3.2078]
[1736957293264,4.39725824,3346.1,3345.2,2.90304824]
[1736957293265,0.59781,3345.4,3345.2,2.90304824]
[1736957293462,4.70201,3346.1,3345.2,2.90304824]
[1736957293671,0.59784,3345.2,3345.1,3.2078]
[1736957293968,0.59784,3345.2,3344.7,0.926]
[1736957293969,3.2078,3345.7,3344.7,4.1338]
[1736957294159,0.59791,3344.8,3344.7,4.1338]
[1736957294672,0.59791,3344.8,3344.7,5.5158]
[1736957296264,0.59791,3344.8,3344.7,4.1338]
[1736957296969,0.59791,3344.8,3344.7,3.2078]
[1736957297662,0.59791,3344.8,3344.7,43.2078]
[1736957299372,0.59791,3344.8,3344.7,3.2078]
[1736957299672,0.59798,3344.4,3344.3,4.1144]
[1736957299867,0.59798,3344.4,3344.3,44.1144]
[1736957300067,0.59798,3344.4,3344.3,40.0]
[1736957300273,0.5982,3343.2,3343.1,3.2078]
[1736957300666,0.5982,3343.2,3343.1,43.2078]
[1736957300868,0.5982,3343.2,3343.1,44.5898]
[1736957301173,1.49529,3343.7,3343.1,4.5908]
[1736957301472,0.5982,3343.2,3343.1,4.5908]
[1736957302275,0.5982,3343.2,3343.1,3.2078]
[1736957302772,3.22171404,3343.6,3342.8,40.0]
[1736957302974,6.11084824,3343.3,3342.3,3.2078]
[1736957303168,1.49572,3342.7,3341.7,3.2078]
[1736957303363,0.59844,3341.8,3341.6,3.2078]
[1736957303670,0.59843,3341.9,3341.7,0.59846]
[1736957304176,0.59843,3341.9,3341.6,6.11084824]
[1736957304177,4.81020952,3342.6,3341.6,6.11084824]
[1736957304566,0.59839,3342.1,3342.0,3.2078]
[1736957306180,3.2078,3342.6,3341.6,6.11084824]
[1736957306366,1.4958,3342.5,3341.7,0.59846]
[1736957306677,0.59846,3341.7,3341.6,3.2078]
[1736957306876,0.59851,3341.5,3341.2,2.90304824]
[1736957307076,4.1565,3342.6,3341.3,1.383]
[1736957307276,4.1565,3342.6,3341.8,3.2078]
[1736957307480,0.59838,3342.2,3341.9,0.59842]
[1736957307673,3.46623267,3342.5,3341.8,3.2078]
[1736957308075,0.59836,3342.3,3342.1,0.59839]
[1736957308273,3.46623267,3342.5,3342.1,0.59839]
[1736957308576,0.23812274,3344.2,3342.4,2.90304824]
[1736957308779,0.5981,3343.8,3343.6,3.2078]
[1736957308984,0.59807,3343.9,3343.7,40.59809]
[1736957309276,3.36760033,3344.3,3343.7,40.0]
[1736957309475,3.36760033,3344.4,3344.1,3.2078]
[1736957309672,0.598,3344.3,3344.2,1.383]
[1736957309981,0.59799,3344.4,3344.2,1.98101]
[1736957310180,0.59794,3344.7,3344.2,1.383]
[1736957310377,0.59784,3345.2,3344.5,0.59794]
[1736957310579,0.5979,3344.9,3344.7,0.59791]
[1736957310777,3.45427733,3345.2,3344.3,2.90304824]
[1736957310987,0.59786,3345.1,3344.9,0.59789]
[1736957311178,4.1974,3345.4,3344.5,3.2078]
[1736957311476,3.24192712,3345.0,3344.9,0.59789]
[1736957311680,3.83977712,3345.2,3344.9,0.59789]
[1736957311881,0.59781,3345.4,3345.1,0.59785]
[1736957312181,0.59776,3345.7,3345.4,0.5978]
[1736957312370,0.59773,3345.8,3345.3,0.5978]
[1736957312575,3.26765959,3345.6,3345.1,0.59785]
[1736957312779,3.26765959,3345.6,3345.3,0.5978]
[1736957312977,3.26765959,3345.8,3345.0,1.383]
[1736957312978,3.2078,3345.9,3345.0,1.383]
[1736957313181,0.59781,3345.4,3345.0,1.383]
[1736957313378,3.42271029,3345.5,3345.0,1.383]
[1736957313578,3.2078,3345.9,3345.0,1.383]
[1736957313778,0.5978,3345.5,3345.2,0.59783]
[1736957313979,3.2078,3345.9,3345.0,1.383]
[1736957314183,0.59782,3345.3,3345.0,1.98086]
[1736957314476,0.59775,3345.7,3345.0,1.98086]
[1736957314678,0.59784,3345.2,3344.9,3.80568]
[1736957314882,0.59783,3345.3,3345.0,0.59787]
[1736957315083,0.59786,3345.1,3344.9,3.2078]
[1736957315386,0.5979,3344.9,3344.6,0.59794]
[1736957315583,3.30023991,3345.0,3344.5,3.2078]
[1736957315584,0.59792,3344.8,3344.5,3.80576]
[1736957315779,3.30023991,3344.8,3344.5,3.2078]
[1736957316178,3.2078,3345.2,3344.2,1.383]
[1736957316485,0.59796,3344.6,3344.2,1.981]
[1736957316683,3.37819445,3345.1,3344.1,3.2078]
[1736957316882,3.37819445,3345.1,3344.1,4.5908]
[1736957317088,0.59797,3344.5,3344.2,0.59801]
[1736957317389,3.2191783,3344.4,3344.2,0.598]
[1736957317584,3.2191783,3344.4,3344.1,4.5908]
[1736957317782,3.2191783,3344.4,3344.3,0.598]
[1736957317987,3.2191783,3344.4,3344.1,3.2078]
[1736957317988,3.2078,3345.2,3344.1,4.5908]
[1736957318287,3.2078,3345.2,3344.5,3.2078]
[1736957318888,3.17357824,3345.1,3344.5,3.2078]
[1736957319295,0.5979,3344.9,3344.7,0.59792]
[1736957319485,3.17357824,3345.1,3344.3,1.382]
[1736957319794,3.17357824,3344.8,3344.5,0.59795]
[1736957319997,3.41904406,3345.1,3344.3,1.382]
[1736957320191,3.2078,3345.6,3344.6,4.66753626]
[1736957320384,0.59781,3345.4,3344.6,4.66753626]
[1736957320592,0.59783,3345.3,3345.1,0.59785]
[1736957320795,3.39803418,3345.3,3344.5,3.2078]
[1736957321088,0.59782,3345.4,3345.2,0.59784]
[1736957321293,3.39803418,3345.5,3345.0,0.59786]
[1736957321495,0.59783,3345.3,3345.1,0.59785]
[1736957321796,0.59784,3345.2,3345.0,0.59786]
[1736957321995,3.1108574,3345.2,3344.9,0.59788]
[1736957322187,0.59785,3345.1,3344.9,0.59788]
[1736957322498,0.59791,3344.8,3344.7,0.59792]
[1736957322794,0.59785,3345.1,3344.8,0.5979]
[1736957323095,0.59789,3344.9,3344.5,3.2078]
[1736957323293,0.59791,3344.8,3344.7,0.59792]
[1736957323488,0.59791,3344.8,3344.5,3.2078]
[1736957323489,0.59794,3344.7,3344.5,3.80575]
[1736957323687,3.23410207,3344.8,3344.5,3.2078]
[1736957323891,0.59785,3345.1,3344.7,0.59791]
[1736957324093,0.59791,3344.8,3344.7,0.59791]
[1736957324290,0.59791,3344.8,3344.2,1.382]
[1736957324291,0.59797,3344.5,3344.4,0.59797]
[1736957324699,2.94160953,3345.0,3344.5,0.59795]
[1736957324700,0.59795,3344.6,3344.5,0.59795]
[1736957324994,3.14654615,3344.6,3344.1,3.2078]
[1736957325192,0.59809,3343.8,3343.7,3.2078]
[1736957325491,3.14654615,3343.8,3342.7,3.2078]
[1736957325696,0.59817,3343.4,3343.3,0.59817]
[1736957325894,4.64177615,3343.8,3342.9,3.2078]
[1736957325895,1.49522,3343.8,3342.9,3.2078]
[1736957326091,3.39719703,3343.4,3342.6,40.0]
[1736957326291,0.59822,3343.1,3343.0,0.59822]
[1736957326593,6.60499703,3343.6,3343.0,0.59823]
[1736957326798,3.2078,3343.6,3342.9,3.2078]
[1736957326990,3.2078,3343.6,3343.2,0.59818]
[1736957326991,0.59817,3343.4,3343.2,0.59818]
[1736957327193,3.2078,3343.6,3343.0,1.382]
[1736957327496,3.2078,3343.6,3343.5,0.59814]
[1736957327697,3.2078,3344.0,3343.3,3.2078]
[1736957328200,0.5981,3343.8,3343.3,3.2078]
[1736957328386,0.5981,3343.8,3343.6,0.59811]
[1736957328790,3.14812808,3343.9,3343.7,0.5981]
[1736957329089,0.59811,3343.7,3343.6,0.59812]
[1736957329294,0.59812,3343.7,3343.5,0.59813]
[1736957329592,3.14812808,3343.9,3343.3,3.2078]
[1736957329795,0.59809,3343.8,3343.7,0.59809]
[1736957329992,3.14812808,3343.9,3343.8,0.59809]
[1736957330193,0.9436,3344.4,3343.7,4.70305]
[1736957330495,4.1517,3345.2,3344.1,3.2078]
[1736957330699,4.1517,3345.2,3344.5,0.59796]
[1736957330909,0.59792,3344.8,3344.2,4.5908]
[1736957331096,3.97758723,3345.1,3344.2,4.5908]
[1736957331097,0.5979,3344.9,3344.8,0.59791]
[1736957331292,0.51762459,3345.0,3344.2,4.5908]
[1736957331597,3.45997872,3344.7,3344.2,4.5908]
[1736957331792,0.59794,3344.6,3344.5,0.59795]
[1736957332387,3.40628207,3344.9,3344.2,4.5908]
[1736957332599,4.00418207,3344.9,3344.3,2.093]
[1736957332791,0.59792,3344.8,3344.6,0.59793]
[1736957333004,3.14314665,3344.8,3344.2,4.5908]
[1736957333300,0.5979,3344.9,3344.7,0.59793]
[1736957333698,3.14314665,3344.8,3344.7,0.59793]
[1736957334202,3.74105665,3344.8,3344.7,0.59793]
[1736957334393,3.14314665,3344.8,3344.7,0.59793]
[1736957334589,3.14314665,3344.8,3344.3,2.91913873]
[1736957334794,3.14314665,3344.8,3344.7,3.80573]
[1736957335000,3.2078,3345.2,3344.7,3.2078]
[1736957335199,0.59787,3345.1,3344.9,0.59788]
[1736957335493,0.59791,3344.8,3344.3,6.12693873]
[1736957335698,3.13337857,3345.0,3344.6,0.59793]
[1736957335903,3.41832785,3344.7,3344.6,0.59794]
[1736957336195,0.59792,3344.8,3344.6,0.59794]
[1736957336403,3.41832785,3345.0,3344.4,40.0]
[1736957336697,3.41832785,3344.7,3344.4,40.0]
[1736957336896,0.9307,3345.8,3344.6,3.2078]
[1736957337102,3.18564711,3345.4,3345.0,3.2078]
[1736957337400,0.51925968,3345.3,3345.0,3.2078]
[1736957337594,0.59788,3345.0,3344.8,0.5979]
[1736957337789,0.59785,3345.1,3344.8,0.5979]
[1736957337995,0.51925968,3345.1,3344.6,3.2078]
[1736957338201,0.59783,3345.3,3345.1,0.59784]
[1736957338503,0.59783,3345.3,3344.7,5.34575873]
[1736957338701,0.51929633,3345.4,3344.7,3.85093873]
[1736957339003,0.51929633,3345.4,3345.3,0.59782]
[1736957339199,0.59779,3345.5,3345.3,0.5978]
[1736957339399,0.51929633,3345.8,3345.2,3.2078]
[1736957339603,1.11702633,3346.2,3346.0,0.59774]
[1736957339803,3.36339016,3345.7,3345.3,1.49455]
[1736957339993,0.59776,3346.0,3345.3,1.49455]
[1736957340191,0.59776,3346.0,3345.8,0.59779]
[1736957340398,3.27148133,3345.9,3345.8,0.59779]
[1736957340699,0.51977097,3345.9,3345.4,1.49466]
[1736957340904,0.59776,3346.0,3345.8,0.59778]
[1736957341099,0.51977097,3346.1,3345.4,1.49466]
[1736957341305,0.51977097,3346.2,3346.1,0.59774]
[1736957341698,0.51977097,3346.6,3346.5,0.59766]
[1736957341893,0.51977097,3346.7,3346.0,4.70217]
[1736957342210,3.2078,3346.8,3346.3,2.91913873]
[1736957342402,3.2078,3346.8,3346.3,4.30113873]
[1736957342606,3.2078,3346.8,3346.7,0.59763]
[1736957342804,3.2078,3346.8,3346.3,2.91913873]
[1736957342998,3.19621256,3346.8,3345.9,2.91913873]
[1736957343198,3.2078,3346.5,3345.9,2.91913873]
[1736957343409,2.91913873,3346.0,3345.2,3.2078]
[1736957343605,2.91913873,3346.0,3344.9,4.62853705]
[1736957343606,3.2078,3345.7,3344.9,4.62853705]
[1736957343899,0.59793,3345.1,3344.9,0.59794]
[1736957344305,3.2078,3345.2,3345.1,0.59791]
[1736957344604,2.98787,3347.1,3345.1,0.59791]
[1736957344605,3.2078,3345.8,3345.7,0.59781]
[1736957344812,3.2078,3346.2,3345.1,9.33876]
[1736957345106,0.59782,3345.7,3345.6,0.59782]
[1736957345504,3.2078,3345.8,3345.1,9.33876]
[1736957345704,3.2078,3346.2,3345.1,7.844]
[1736957345900,3.31304424,3345.7,3345.6,3.80562]
[1736957346206,3.2078,3346.2,3346.1,0.59773]
[1736957346608,3.80552,3346.2,3346.1,0.59773]
[1736957346805,3.2078,3346.2,3346.1,0.59773]
[1736957347002,3.2078,3346.2,3345.5,1.8758]
[1736957347409,0.59774,3346.1,3346.0,0.59774]
[1736957347910,3.2078,3346.2,3346.1,0.59773]
[1736957348108,6.12693873,3346.8,3346.1,0.59772]
[1736957348406,6.12693873,3346.8,3345.5,1.8758]
[1736957348407,3.34723488,3346.2,3345.5,1.8758]
[1736957348616,3.2078,3345.8,3345.1,1.382]
[1736957348814,0.59785,3345.5,3345.4,0.59785]
[1736957349001,3.95753534,3345.7,3345.6,0.59782]
[1736957349205,3.2078,3345.8,3345.1,1.382]
[1736957349416,3.2078,3345.8,3345.2,1.49475]
[1736957349609,3.95753534,3345.7,3345.6,0.59782]
[1736957349808,0.59783,3345.6,3345.5,0.59783]
[1736957350014,3.35971534,3345.7,3345.1,1.382]
[1736957350207,1.49452,3345.7,3345.1,1.382]
[1736957350407,4.88878505,3345.7,3344.9,4.1079]
[1736957350608,4.88878505,3345.7,3344.5,1.49506]
[1736957350609,3.2078,3345.4,3344.5,4.5898]
[1736957350909,0.59798,3344.8,3344.7,0.59798]
[1736957351413,3.2078,3344.9,3344.6,0.598]
[1736957351414,0.598,3344.7,3344.6,0.598]
[1736957351608,0.59798,3344.8,3344.7,0.59797]
[1736957351802,0.59798,3344.8,3344.7,0.59798]
[1736957352008,3.2078,3344.9,3344.4,0.9246]
[1736957352214,3.80576,3344.9,3344.8,0.59797]
[1736957352417,3.2078,3344.9,3344.4,0.9246]
[1736957352903,0.59797,3344.8,3344.4,0.59802]
[1736957353107,0.59799,3344.7,3344.6,0.59799]
[1736957353308,0.59792,3345.1,3345.0,0.59792]
[1736957353510,0.59795,3345.0,3344.9,0.59795]
[1736957354012,3.10934748,3345.0,3344.3,3.2078]
[1736957354217,3.10934748,3345.0,3344.4,0.59802]
[1736957354218,0.59797,3344.8,3344.4,0.59802]
[1736957354410,4.60418748,3345.0,3344.3,0.59805]
[1736957354411,0.59804,3344.4,3344.3,0.59805]
[1736957354619,0.59804,3344.4,3344.2,0.9001]
[1736957354620,0.59802,3344.6,3344.2,0.9001]
[1736957354911,3.28982817,3344.8,3344.7,0.59798]
[1736957355112,3.22502717,3344.5,3344.1,1.49523]
[1736957355319,3.22502717,3344.5,3344.4,0.59804]
[1736957355514,3.2078,3345.0,3344.2,6.12693873]
[1736957355814,3.2078,3345.0,3344.9,0.59795]
[1736957356030,3.2078,3345.5,3345.4,0.59786]
[1736957356313,3.2078,3346.5,3346.4,0.59768]
[1736957356512,3.68908162,3346.5,3346.4,0.59768]
[1736957356717,6.88431642,3346.5,3346.4,0.59768]
[1736957357016,6.40332397,3346.5,3346.4,0.59768]
[1736957357526,3.2078,3346.5,3346.4,0.59768]
[1736957358413,1.1699,3346.9,3346.8,0.59761]
[1736957358711,3.2078,3347.0,3346.3,4.906]
[1736957359017,3.2078,3347.0,3346.9,0.59759]
[1736957359717,0.59757,3347.0,3346.8,0.5976]
[1736957360214,0.59757,3347.0,3346.4,1.49417]
[1736957360424,0.59757,3347.1,3346.9,0.59759]
[1736957360713,6.52556996,3347.0,3346.8,0.5976]
[1736957360920,0.59759,3346.9,3346.4,0.59767]
[1736957361119,0.59764,3346.7,3346.6,0.59764]
[1736957361416,3.2087515,3346.7,3346.6,0.59764]
[1736957361609,3.8063815,3346.7,3346.6,0.59764]
[1736957361813,3.2078,3347.0,3346.9,0.59759]
[1736957362316,3.2078,3347.4,3347.3,0.59751]
[1736957362814,3.30286672,3347.4,3347.3,0.59751]
[1736957363526,3.7914,3348.0,3347.9,0.59741]
[1736957363817,0.59736,3348.3,3348.1,0.59737]
[1736957364015,3.2078,3348.4,3348.3,0.59734]
[1736957364321,3.38436379,3348.4,3348.3,0.59734]
[1736957364629,0.59734,3348.3,3348.0,0.59738]
[1736957364919,3.16583552,3348.5,3347.9,0.59741]
[1736957365121,3.16583552,3348.5,3347.8,2.91913873]
[1736957365322,0.59731,3348.5,3348.3,0.59734]
[1736957365522,3.16583552,3348.5,3348.2,0.59736]
[1736957365824,3.16583552,3348.5,3347.8,2.91913873]
[1736957366012,3.2078,3348.6,3348.0,1.4935]
[1736957366215,3.2078,3349.0,3348.7,0.59726]
[1736957366415,3.80503,3349.0,3348.7,0.59726]
[1736957366613,3.35736998,3349.1,3348.3,1.49336]
[1736957366827,0.59721,3349.1,3348.8,0.59724]
[1736957367017,0.6135,3349.2,3348.6,4.30013873]
[1736957367217,3.2078,3349.4,3349.3,0.59716]
[1736957367416,3.2078,3349.4,3349.0,2.91913873]
[1736957367617,3.2078,3349.4,3349.3,0.59716]
[1736957367817,3.2078,3349.8,3349.1,0.5972]
[1736957368018,3.2078,3349.8,3349.0,6.12693873]
[1736957368215,3.2078,3349.8,3349.5,0.59712]
[1736957368524,3.2078,3349.8,3349.0,6.12693873]
[1736957368827,3.2078,3349.8,3349.7,0.59709]
[1736957369424,0.6135,3350.3,3349.5,1.381]
[1736957369624,0.6135,3350.3,3350.0,0.59703]
[1736957369929,0.6135,3350.3,3349.9,0.59705]
[1736957370227,0.6135,3350.3,3350.0,0.59704]
[1736957370632,1.21049,3350.3,3349.5,1.381]
[1736957370933,1.21049,3350.3,3349.8,0.59706]
[1736957371134,1.21049,3350.3,3349.9,0.59705]
[1736957371320,0.59701,3350.2,3349.5,1.381]
[1736957371628,0.59701,3350.2,3349.9,0.59705]
[1736957372220,0.6135,3350.3,3349.6,1.381]
[1736957372426,3.2078,3350.4,3350.1,0.59702]
[1736957372623,0.597,3350.3,3350.0,0.59703]
[1736957373421,0.59701,3350.2,3350.0,0.59703]
[1736957373622,0.59699,3350.3,3350.1,0.59702]
[1736957373823,3.2078,3350.4,3350.3,0.59699]
[1736957374026,3.80478,3350.4,3350.1,0.59701]
[1736957374226,3.2078,3350.4,3349.8,2.91913873]
[1736957374434,0.59701,3350.2,3350.0,0.59704]
[1736957374925,0.59699,3350.3,3350.0,0.59704]
[1736957375730,3.2078,3350.4,3349.8,2.91913873]
[1736957375933,0.59702,3350.2,3349.9,0.59705]
[1736957376232,0.59703,3350.1,3349.8,0.59706]
[1736957376432,0.59703,3350.1,3349.9,0.59705]
[1736957376626,3.2078,3350.4,3349.7,0.6039]
[1736957376827,0.59699,3350.3,3350.0,0.59703]
[1736957377026,3.2078,3350.4,3350.3,0.59699]
[1736957377228,3.2078,3350.4,3349.8,2.91913873]
[1736957377529,0.59699,3350.3,3350.1,0.59701]
[1736957377729,3.2078,3350.4,3349.8,2.91913873]
[1736957377931,0.59702,3350.2,3349.9,0.59706]
[1736957378129,3.2078,3350.4,3349.7,0.6039]
[1736957378544,3.2078,3350.4,3350.2,2.91913873]
[1736957378732,3.2078,3350.4,3350.3,0.59699]
[1736957379433,3.2078,3350.8,3350.7,0.59691]
[1736957379937,3.2078,3350.8,3350.7,40.59691]
[1736957380433,0.5969,3350.8,3350.7,0.59691]
[1736957380629,3.2078,3351.2,3350.7,0.59691]
[1736957380939,0.5969,3350.8,3350.4,1.38]
[1736957381127,0.5969,3350.8,3350.7,0.59691]
[1736957381339,3.8047,3350.8,3350.6,0.59692]
[1736957381834,3.2078,3350.8,3350.7,0.59691]
[1736957382035,3.2078,3350.8,3350.4,1.38]
[1736957382234,0.59695,3350.6,3350.5,0.59694]
[1736957382829,3.2078,3350.8,3350.4,1.38]
[1736957383035,0.59686,3351.0,3350.6,2.91913873]
[1736957383234,0.5608,3351.5,3350.9,3.2078]
[1736957383430,3.2078,3352.1,3351.3,3.2078]
[1736957383637,3.80447,3352.1,3352.0,0.59668]
[1736957383934,3.2078,3352.1,3352.0,0.59668]
[1736957384736,3.80446,3352.1,3352.0,0.59668]
[1736957384939,0.59668,3352.0,3351.9,0.59669]
[1736957385237,3.2078,3352.1,3352.0,0.59668]
[1736957385635,3.2078,3352.1,3352.0,1.97568]
[1736957385833,0.59664,3352.3,3352.2,0.59663]
[1736957386044,0.59664,3352.3,3352.2,40.59663]
[1736957386539,0.59663,3352.4,3352.3,0.59663]
[1736957386731,3.2078,3352.5,3352.0,1.379]
[1736957386930,3.2078,3352.5,3352.4,0.59661]
[1736957387438,3.2078,3352.5,3352.0,1.379]
[1736957387834,3.2078,3352.5,3352.4,0.59661]
[1736957388235,1.49118,3353.3,3352.0,2.87068]
[1736957388236,3.2078,3353.0,3352.2,6.12693873]
[1736957388538,3.2078,3353.0,3352.9,0.59652]
[1736957388936,3.8043,3353.0,3352.9,0.59652]
[1736957389132,3.2078,3353.0,3352.9,0.59652]
[1736957389836,0.59652,3352.9,3352.8,1.97553]